[Event "Titled Tuesday Blitz March 28 Late 2023"]
[White "Cori T., Deysi"]
[Black "Pichot, Alan"]
[WhiteFideId "3801934"]
[BlackFideId "110973"]
[WhiteElo "2292"]
[BlackElo "2573"]
[Result "0-1"]
[Round "05"]
[TimeControl "180+2"]
[Date "2023.03.28"]
[WhiteClock "0:00:02"]
[BlackClock "0:00:44"]

1. Nf3 {[%clk 0:03:00]}  g6 {[%clk 0:02:59]} 2. d4 {[%clk 0:03:00]}  Nf6 {[%clk 0:02:59]} 3. g3 {[%clk 0:03:01]}  Bg7 {[%clk 0:02:59]} 4. Bg2 {[%clk 0:03:01]}  O-O {[%clk 0:03:00]} 5. O-O {[%clk 0:03:02]}  d6 {[%clk 0:03:00]} 6. b3 {[%clk 0:03:02]}  b5 {[%clk 0:03:00]} 7. Bb2 {[%clk 0:03:01]}  Bb7 {[%clk 0:03:00]} 8. a4 {[%clk 0:03:00]}  b4 {[%clk 0:02:58]} 9. a5 {[%clk 0:02:59]}  a6 {[%clk 0:02:42]} 10. Nbd2 {[%clk 0:02:54]}  Nbd7 {[%clk 0:02:42]} 11. Nc4 {[%clk 0:02:51]}  Rb8 {[%clk 0:02:33]} 12. Qd2 {[%clk 0:02:43]}  Be4 {[%clk 0:02:30]} 13. Rfd1 {[%clk 0:02:39]}  Qc8 {[%clk 0:02:29]} 14. Ne1 {[%clk 0:02:39]}  Bxg2 {[%clk 0:02:18]} 15. Nxg2 {[%clk 0:02:40]}  Qb7 {[%clk 0:02:14]} 16. f3 {[%clk 0:02:37]}  Nd5 {[%clk 0:02:09]} 17. e4 {[%clk 0:02:36]}  Nc3 {[%clk 0:02:10]} 18. Bxc3 {[%clk 0:02:14]}  bxc3 {[%clk 0:02:10]} 19. Qxc3 {[%clk 0:02:14]}  c5 {[%clk 0:02:10]} 20. Qe3 {[%clk 0:01:28]}  cxd4 {[%clk 0:02:08]} 21. Rxd4 {[%clk 0:01:10]}  Rfc8 {[%clk 0:01:49]} 22. Rad1 {[%clk 0:01:07]}  Bxd4 {[%clk 0:01:48]} 23. Qxd4 {[%clk 0:01:07]}  Qb4 {[%clk 0:01:42]} 24. Nge3 {[%clk 0:01:02]}  Qc5 {[%clk 0:01:41]} 25. Kg2 {[%clk 0:00:48]}  Qxd4 {[%clk 0:01:33]} 26. Rxd4 {[%clk 0:00:49]}  Rc5 {[%clk 0:01:33]} 27. f4 {[%clk 0:00:46]}  Rbc8 {[%clk 0:01:28]} 28. Kf3 {[%clk 0:00:45]}  Kf8 {[%clk 0:01:27]} 29. h4 {[%clk 0:00:44]}  Nb8 {[%clk 0:01:16]} 30. Rd1 {[%clk 0:00:12]}  Ke8 {[%clk 0:01:09]} 31. Ra1 {[%clk 0:00:10]}  Nc6 {[%clk 0:01:07]} 32. c3 {[%clk 0:00:09]}  Rb5 {[%clk 0:01:02]} 33. Ra3 {[%clk 0:00:08]}  Nb8 {[%clk 0:00:57]} 34. b4 {[%clk 0:00:08]}  Nd7 {[%clk 0:00:56]} 35. Ke2 {[%clk 0:00:06]}  Rb7 {[%clk 0:00:52]} 36. Kd3 {[%clk 0:00:07]}  Rbc7 {[%clk 0:00:52]} 37. Nb6 {[%clk 0:00:06]}  Rb8 {[%clk 0:00:50]} 38. Ned5 {[%clk 0:00:05]}  Rc6 {[%clk 0:00:50]} 39. c4 {[%clk 0:00:03]}  e6 {[%clk 0:00:48]} 40. Nxd7 {[%clk 0:00:03]}  Kxd7 {[%clk 0:00:48]} 41. Nb6+ {[%clk 0:00:03]}  Kc7 {[%clk 0:00:49]} 42. b5 {[%clk 0:00:02]}  axb5 {[%clk 0:00:47]} 43. cxb5 {[%clk 0:00:03]}  Rc5 {[%clk 0:00:48]} 44. a6 {[%clk 0:00:03]}  Kxb6 {[%clk 0:00:47]} 45. a7 {[%clk 0:00:04]}  Ra8 {[%clk 0:00:48]} 46. Ra6+ {[%clk 0:00:04]}  Kxb5 {[%clk 0:00:47]} 47. Rxd6 {[%clk 0:00:04]}  Rxa7 {[%clk 0:00:47]} 48. Rd8 {[%clk 0:00:02]}  e5 {[%clk 0:00:44]} 49. fxe5 {[%clk 0:00:02]}  Ra3+ {[%clk 0:00:43]} 50. Kd4 {[%clk 0:00:03]}  Rc4+ {[%clk 0:00:44]} 51. Kd5 {[%clk 0:00:02]}  Rd3# {[%clk 0:00:44]} 0-1


[Site "https://www.chess.com"]

[Event "Titled Tuesday Blitz March 28 Late 2023"]
[White "Smirnov, Pavel"]
[Black "koteRV1610"]
[WhiteFideId "4123425"]
[WhiteElo "2519"]
[BlackElo "2448"]
[Result "0-1"]
[Round "05"]
[TimeControl "180+2"]
[Date "2023.03.28"]
[WhiteClock "0:00:18"]
[BlackClock "0:01:16"]

1. d4 {[%clk 0:03:00]}  Nf6 {[%clk 0:02:57]} 2. c4 {[%clk 0:03:00]}  e6 {[%clk 0:02:57]} 3. g3 {[%clk 0:03:01]}  d5 {[%clk 0:02:55]} 4. Nf3 {[%clk 0:03:01]}  Be7 {[%clk 0:02:53]} 5. Bg2 {[%clk 0:03:01]}  dxc4 {[%clk 0:02:54]} 6. Qa4+ {[%clk 0:02:58]}  Nbd7 {[%clk 0:02:49]} 7. Qxc4 {[%clk 0:02:57]}  a6 {[%clk 0:02:50]} 8. Bf4 {[%clk 0:02:52]}  Nd5 {[%clk 0:02:47]} 9. Nc3 {[%clk 0:02:52]}  Nxf4 {[%clk 0:02:45]} 10. gxf4 {[%clk 0:02:51]}  b5 {[%clk 0:02:45]} 11. Qd3 {[%clk 0:02:47]}  Bb7 {[%clk 0:02:46]} 12. O-O {[%clk 0:02:47]}  c5 {[%clk 0:02:46]} 13. d5 {[%clk 0:02:41]}  c4 {[%clk 0:02:39]} 14. Qd1 {[%clk 0:02:26]}  Nc5 {[%clk 0:02:38]} 15. Ne5 {[%clk 0:02:14]}  O-O {[%clk 0:02:31]} 16. Nc6 {[%clk 0:01:55]}  Bxc6 {[%clk 0:02:30]} 17. dxc6 {[%clk 0:01:56]}  Qc7 {[%clk 0:02:30]} 18. e3 {[%clk 0:01:52]}  Rad8 {[%clk 0:02:30]} 19. Qg4 {[%clk 0:01:46]}  Bf6 {[%clk 0:02:29]} 20. Rac1 {[%clk 0:01:25]}  Nd3 {[%clk 0:02:28]} 21. Rc2 {[%clk 0:01:24]}  Nb4 {[%clk 0:02:26]} 22. Re2 {[%clk 0:01:16]}  Bxc3 {[%clk 0:02:22]} 23. bxc3 {[%clk 0:01:16]}  Nxc6 {[%clk 0:02:23]} 24. Kh1 {[%clk 0:01:16]}  Ne7 {[%clk 0:02:19]} 25. Rg1 {[%clk 0:01:15]}  Ng6 {[%clk 0:01:55]} 26. Bf3 {[%clk 0:01:10]}  Qe7 {[%clk 0:01:55]} 27. Qg2 {[%clk 0:00:56]}  Rd3 {[%clk 0:01:52]} 28. Rc2 {[%clk 0:00:50]}  Qf6 {[%clk 0:01:52]} 29. Rgc1 {[%clk 0:00:50]}  Rfd8 {[%clk 0:01:50]} 30. Be2 {[%clk 0:00:46]}  Rd2 {[%clk 0:01:47]} 31. Qb7 {[%clk 0:00:39]}  Rxc2 {[%clk 0:01:38]} 32. Rxc2 {[%clk 0:00:38]}  e5 {[%clk 0:01:38]} 33. Rc1 {[%clk 0:00:20]}  exf4 {[%clk 0:01:34]} 34. e4 {[%clk 0:00:20]}  f3 {[%clk 0:01:33]} 35. Bf1 {[%clk 0:00:20]}  h5 {[%clk 0:01:31]} 36. Qc7 {[%clk 0:00:19]}  Rd2 {[%clk 0:01:28]} 37. Qc8+ {[%clk 0:00:19]}  Kh7 {[%clk 0:01:28]} 38. Qh3 {[%clk 0:00:18]}  Qg5 {[%clk 0:01:16]} 39. Qxf3 {[%clk 0:00:18]}  Rd3 {[%clk 0:01:16]} 0-1


[Site "https://www.chess.com"]

[Event "Titled Tuesday Blitz March 28 Late 2023"]
[White "Aradhya, Garg"]
[Black "Silva, Pedro Gil Ferreira Da"]
[WhiteFideId "25006746"]
[BlackFideId "1946102"]
[WhiteElo "2263"]
[BlackElo "2255"]
[Result "0-1"]
[Round "05"]
[TimeControl "180+2"]
[Date "2023.03.28"]
[WhiteClock "0:00:09"]
[BlackClock "0:00:33"]

1. d4 {[%clk 0:03:00]}  Nf6 {[%clk 0:02:59]} 2. c4 {[%clk 0:03:01]}  e6 {[%clk 0:03:00]} 3. Nf3 {[%clk 0:03:01]}  Bb4+ {[%clk 0:03:00]} 4. Nbd2 {[%clk 0:03:01]}  O-O {[%clk 0:02:59]} 5. a3 {[%clk 0:03:01]}  Be7 {[%clk 0:02:59]} 6. e4 {[%clk 0:03:01]}  d6 {[%clk 0:03:00]} 7. Bd3 {[%clk 0:03:01]}  Nfd7 {[%clk 0:02:59]} 8. O-O {[%clk 0:03:01]}  e5 {[%clk 0:02:59]} 9. d5 {[%clk 0:02:46]}  a5 {[%clk 0:02:56]} 10. Bc2 {[%clk 0:02:45]}  Nc5 {[%clk 0:02:44]} 11. b3 {[%clk 0:02:44]}  Bg4 {[%clk 0:02:42]} 12. Rb1 {[%clk 0:02:42]}  Nbd7 {[%clk 0:02:29]} 13. h3 {[%clk 0:02:37]}  Bh5 {[%clk 0:02:29]} 14. Re1 {[%clk 0:02:35]}  c6 {[%clk 0:02:23]} 15. b4 {[%clk 0:02:33]}  axb4 {[%clk 0:02:23]} 16. axb4 {[%clk 0:02:34]}  Na6 {[%clk 0:02:23]} 17. dxc6 {[%clk 0:02:30]}  bxc6 {[%clk 0:02:23]} 18. b5 {[%clk 0:02:31]}  cxb5 {[%clk 0:02:23]} 19. cxb5 {[%clk 0:02:32]}  Nac5 {[%clk 0:02:23]} 20. Nc4 {[%clk 0:02:32]}  Nb6 {[%clk 0:02:22]} 21. Ne3 {[%clk 0:02:31]}  Bg5 {[%clk 0:02:16]} 22. Nf5 {[%clk 0:02:25]}  Bxc1 {[%clk 0:02:14]} 23. Rxc1 {[%clk 0:02:26]}  Bxf3 {[%clk 0:02:07]} 24. Qxf3 {[%clk 0:02:25]}  g6 {[%clk 0:02:08]} 25. Ne3 {[%clk 0:02:10]}  Ra3 {[%clk 0:02:07]} 26. Qe2 {[%clk 0:02:03]}  Ne6 {[%clk 0:02:05]} 27. Qd2 {[%clk 0:01:52]}  Nd4 {[%clk 0:02:03]} 28. Qb4 {[%clk 0:01:52]}  Ra2 {[%clk 0:01:57]} 29. Bd3 {[%clk 0:01:39]}  Qg5 {[%clk 0:01:40]} 30. Rf1 {[%clk 0:01:13]}  Rd8 {[%clk 0:01:36]} 31. Ra1 {[%clk 0:01:09]}  Rxa1 {[%clk 0:01:25]} 32. Rxa1 {[%clk 0:01:10]}  h5 {[%clk 0:01:19]} 33. Ra6 {[%clk 0:01:05]}  Rc8 {[%clk 0:00:46]} 34. Rxb6 {[%clk 0:00:29]}  Nf3+ {[%clk 0:00:41]} 35. Kh1 {[%clk 0:00:20]}  Rc1+ {[%clk 0:00:39]} 36. Nf1 {[%clk 0:00:18]}  Ne1 {[%clk 0:00:34]} 37. g3 {[%clk 0:00:09]}  Nxd3 {[%clk 0:00:34]} 38. Qxd6 {[%clk 0:00:08]}  Rxf1+ {[%clk 0:00:32]} 39. Kg2 {[%clk 0:00:09]}  Rxf2+ {[%clk 0:00:33]} 40. Kh1 {[%clk 0:00:09]}  Qc1# {[%clk 0:00:33]} 0-1


[Site "https://www.chess.com"]

[Event "Titled Tuesday Blitz March 28 Late 2023"]
[White "Bochnicka, Vladimir"]
[Black "Tazbir, Marcin"]
[WhiteFideId "14943450"]
[BlackFideId "1122452"]
[WhiteElo "2094"]
[BlackElo "2516"]
[Result "0-1"]
[Round "05"]
[TimeControl "180+2"]
[Date "2023.03.28"]
[WhiteClock "0:00:04"]
[BlackClock "0:00:52"]

1. e4 {[%clk 0:03:00]}  e6 {[%clk 0:02:51]} 2. d4 {[%clk 0:03:00]}  d5 {[%clk 0:02:51]} 3. Nd2 {[%clk 0:02:59]}  Nf6 {[%clk 0:02:48]} 4. e5 {[%clk 0:02:58]}  Nfd7 {[%clk 0:02:48]} 5. Bd3 {[%clk 0:02:58]}  c5 {[%clk 0:02:47]} 6. c3 {[%clk 0:02:59]}  Nc6 {[%clk 0:02:47]} 7. Ne2 {[%clk 0:02:59]}  Qb6 {[%clk 0:02:47]} 8. Nf3 {[%clk 0:02:58]}  Be7 {[%clk 0:02:47]} 9. O-O {[%clk 0:02:57]}  h6 {[%clk 0:02:46]} 10. a3 {[%clk 0:02:26]}  a5 {[%clk 0:02:45]} 11. Bc2 {[%clk 0:02:16]}  Qa6 {[%clk 0:02:39]} 12. Nf4 {[%clk 0:01:57]}  b5 {[%clk 0:02:35]} 13. Re1 {[%clk 0:01:46]}  Nb6 {[%clk 0:02:28]} 14. Nh5 {[%clk 0:01:45]}  g6 {[%clk 0:02:21]} 15. Nf6+ {[%clk 0:01:32]}  Kd8 {[%clk 0:02:21]} 16. dxc5 {[%clk 0:01:26]}  Bxc5 {[%clk 0:02:20]} 17. Be3 {[%clk 0:01:26]}  Bxe3 {[%clk 0:02:17]} 18. Rxe3 {[%clk 0:01:22]}  Nc4 {[%clk 0:02:10]} 19. Re2 {[%clk 0:01:05]}  Nxb2 {[%clk 0:02:07]} 20. Qb1 {[%clk 0:01:05]}  Nc4 {[%clk 0:02:07]} 21. a4 {[%clk 0:01:02]}  Rb8 {[%clk 0:02:06]} 22. Qd1 {[%clk 0:00:55]}  b4 {[%clk 0:02:00]} 23. Nxd5 {[%clk 0:00:36]}  exd5 {[%clk 0:01:59]} 24. Qxd5+ {[%clk 0:00:37]}  Ke7 {[%clk 0:01:57]} 25. Bd3 {[%clk 0:00:35]}  Be6 {[%clk 0:01:57]} 26. Qd6+ {[%clk 0:00:34]}  Nxd6 {[%clk 0:01:55]} 27. exd6+ {[%clk 0:00:34]}  Kxd6 {[%clk 0:01:55]} 28. Bxa6 {[%clk 0:00:35]}  bxc3 {[%clk 0:01:54]} 29. Rc1 {[%clk 0:00:35]}  Rb3 {[%clk 0:01:52]} 30. Re3 {[%clk 0:00:29]}  Rhb8 {[%clk 0:01:49]} 31. h3 {[%clk 0:00:27]}  c2 {[%clk 0:01:32]} 32. Rxc2 {[%clk 0:00:27]}  Rxe3 {[%clk 0:01:31]} 33. fxe3 {[%clk 0:00:27]}  Rb1+ {[%clk 0:01:29]} 34. Kf2 {[%clk 0:00:27]}  Nb4 {[%clk 0:01:29]} 35. Rd2+ {[%clk 0:00:27]}  Kc5 {[%clk 0:01:29]} 36. Bb5 {[%clk 0:00:22]}  Nd5 {[%clk 0:01:13]} 37. Nd4 {[%clk 0:00:19]}  Nc3 {[%clk 0:01:08]} 38. Rc2 {[%clk 0:00:16]}  Kb4 {[%clk 0:01:04]} 39. Nc6+ {[%clk 0:00:05]}  Kb3 {[%clk 0:01:04]} 40. Rd2 {[%clk 0:00:04]}  Ne4+ {[%clk 0:01:03]} 41. Ke2 {[%clk 0:00:04]}  Nxd2 {[%clk 0:01:03]} 42. Kxd2 {[%clk 0:00:05]}  Rb2+ {[%clk 0:01:01]} 43. Kd3 {[%clk 0:00:05]}  Rxg2 {[%clk 0:01:01]} 44. Nxa5+ {[%clk 0:00:05]}  Kb4 {[%clk 0:01:01]} 45. Nc6+ {[%clk 0:00:05]}  Kc5 {[%clk 0:01:01]} 46. Nd4 {[%clk 0:00:06]}  Bxh3 {[%clk 0:01:00]} 47. a5 {[%clk 0:00:06]}  Bc8 {[%clk 0:00:59]} 48. Bc4 {[%clk 0:00:05]}  f5 {[%clk 0:00:55]} 49. Bf7 {[%clk 0:00:05]}  h5 {[%clk 0:00:52]} 50. a6 {[%clk 0:00:04]}  Bxa6+ {[%clk 0:00:52]} 0-1


[Site "https://www.chess.com"]

[Event "Titled Tuesday Blitz March 28 Late 2023"]
[White "Hambleton, Aman"]
[Black "Castella Garcia, Fausto"]
[WhiteFideId "2606577"]
[BlackFideId "3501922"]
[WhiteElo "2511"]
[BlackElo "2245"]
[Result "1-0"]
[Round "05"]
[TimeControl "180+2"]
[Date "2023.03.28"]
[WhiteClock "0:00:10"]
[BlackClock "0:00:11"]

1. d4 {[%clk 0:03:00]}  Nf6 {[%clk 0:02:56]} 2. Bf4 {[%clk 0:02:59]}  g6 {[%clk 0:02:56]} 3. Nc3 {[%clk 0:02:59]}  Bg7 {[%clk 0:02:55]} 4. e4 {[%clk 0:02:58]}  d6 {[%clk 0:02:56]} 5. Qd2 {[%clk 0:02:58]}  c6 {[%clk 0:02:55]} 6. f3 {[%clk 0:02:53]}  b5 {[%clk 0:02:50]} 7. Bd3 {[%clk 0:02:28]}  Nbd7 {[%clk 0:02:39]} 8. Nge2 {[%clk 0:02:03]}  e5 {[%clk 0:02:35]} 9. Bh6 {[%clk 0:02:01]}  O-O {[%clk 0:02:30]} 10. Bxg7 {[%clk 0:01:52]}  Kxg7 {[%clk 0:02:28]} 11. O-O {[%clk 0:01:53]}  exd4 {[%clk 0:02:22]} 12. Nxd4 {[%clk 0:01:49]}  Qb6 {[%clk 0:02:22]} 13. Qf2 {[%clk 0:01:46]}  Ne5 {[%clk 0:02:19]} 14. Rfd1 {[%clk 0:01:31]}  Nfg4 {[%clk 0:01:50]} 15. fxg4 {[%clk 0:01:30]}  Nxg4 {[%clk 0:01:49]} 16. Nf5+ {[%clk 0:01:26]}  gxf5 {[%clk 0:01:49]} 17. Qxb6 {[%clk 0:01:25]}  axb6 {[%clk 0:01:50]} 18. exf5 {[%clk 0:01:19]}  d5 {[%clk 0:01:46]} 19. Re1 {[%clk 0:01:11]}  b4 {[%clk 0:01:39]} 20. Ne2 {[%clk 0:01:10]}  f6 {[%clk 0:01:36]} 21. Nf4 {[%clk 0:00:15]}  Ne5 {[%clk 0:01:33]} 22. Ne6+ {[%clk 0:00:10]}  Bxe6 {[%clk 0:01:33]} 23. fxe6 {[%clk 0:00:11]}  Nxd3 {[%clk 0:01:24]} 24. cxd3 {[%clk 0:00:12]}  Rfe8 {[%clk 0:01:15]} 25. d4 {[%clk 0:00:11]}  c5 {[%clk 0:01:11]} 26. dxc5 {[%clk 0:00:09]}  bxc5 {[%clk 0:01:11]} 27. Rad1 {[%clk 0:00:07]}  Rad8 {[%clk 0:01:07]} 28. Re3 {[%clk 0:00:06]}  f5 {[%clk 0:01:02]} 29. Re5 {[%clk 0:00:06]}  Kf6 {[%clk 0:00:52]} 30. Rdxd5 {[%clk 0:00:05]}  Rxd5 {[%clk 0:00:47]} 31. Rxd5 {[%clk 0:00:06]}  Rc8 {[%clk 0:00:38]} 32. e7 {[%clk 0:00:03]}  Kxe7 {[%clk 0:00:37]} 33. Rxf5 {[%clk 0:00:04]}  c4 {[%clk 0:00:38]} 34. Rf2 {[%clk 0:00:02]}  Kd6 {[%clk 0:00:35]} 35. Rd2+ {[%clk 0:00:02]}  Kc5 {[%clk 0:00:29]} 36. Kf2 {[%clk 0:00:03]}  c3 {[%clk 0:00:28]} 37. Rc2 {[%clk 0:00:02]}  Kd4 {[%clk 0:00:27]} 38. Ke2 {[%clk 0:00:02]}  Re8+ {[%clk 0:00:22]} 39. Kd1 {[%clk 0:00:03]}  Kd3 {[%clk 0:00:22]} 40. Rf2 {[%clk 0:00:02]}  Re3 {[%clk 0:00:17]} 41. bxc3 {[%clk 0:00:02]}  bxc3 {[%clk 0:00:17]} 42. Rf3 {[%clk 0:00:02]}  Rxf3 {[%clk 0:00:08]} 43. gxf3 {[%clk 0:00:03]}  h5 {[%clk 0:00:09]} 44. a4 {[%clk 0:00:03]}  Kc4 {[%clk 0:00:08]} 45. Kc2 {[%clk 0:00:03]}  Kb4 {[%clk 0:00:08]} 46. h4 {[%clk 0:00:03]}  Kxa4 {[%clk 0:00:09]} 47. Kxc3 {[%clk 0:00:04]}  Kb5 {[%clk 0:00:09]} 48. Kd4 {[%clk 0:00:05]}  Kc6 {[%clk 0:00:09]} 49. Ke5 {[%clk 0:00:06]}  Kd7 {[%clk 0:00:09]} 50. Kf5 {[%clk 0:00:07]}  Kd6 {[%clk 0:00:10]} 51. Kg5 {[%clk 0:00:08]}  Ke5 {[%clk 0:00:10]} 52. Kxh5 {[%clk 0:00:09]}  Kf4 {[%clk 0:00:11]} 53. Kg6 {[%clk 0:00:09]}  Kxf3 {[%clk 0:00:11]} 54. h5 {[%clk 0:00:10]} 1-0


[Site "https://www.chess.com"]

[Event "Titled Tuesday Blitz March 28 Late 2023"]
[White "Andreikin, Dmitry"]
[Black "Wieczorek, Oskar"]
[WhiteFideId "4158814"]
[BlackFideId "1133950"]
[WhiteElo "2736"]
[BlackElo "2418"]
[Result "1-0"]
[Round "05"]
[TimeControl "180+2"]
[Date "2023.03.28"]
[WhiteClock "0:02:00"]
[BlackClock "0:01:19"]

1. e4 {[%clk 0:03:00]}  c5 {[%clk 0:02:55]} 2. Na3 {[%clk 0:03:00]}  h5 {[%clk 0:02:54]} 3. Nf3 {[%clk 0:02:59]}  a6 {[%clk 0:02:53]} 4. c3 {[%clk 0:02:56]}  e6 {[%clk 0:02:47]} 5. d4 {[%clk 0:02:54]}  cxd4 {[%clk 0:02:47]} 6. cxd4 {[%clk 0:02:55]}  d5 {[%clk 0:02:46]} 7. e5 {[%clk 0:02:54]}  Nc6 {[%clk 0:02:41]} 8. Bd3 {[%clk 0:02:53]}  Be7 {[%clk 0:02:41]} 9. Nc2 {[%clk 0:02:48]}  g5 {[%clk 0:02:40]} 10. h4 {[%clk 0:02:45]}  gxh4 {[%clk 0:02:36]} 11. Be3 {[%clk 0:02:38]}  Nh6 {[%clk 0:02:35]} 12. Qd2 {[%clk 0:02:34]}  Ng4 {[%clk 0:02:35]} 13. Bg5 {[%clk 0:02:34]}  Bxg5 {[%clk 0:02:25]} 14. Qxg5 {[%clk 0:02:35]}  Qxg5 {[%clk 0:02:24]} 15. Nxg5 {[%clk 0:02:34]}  f6 {[%clk 0:02:07]} 16. exf6 {[%clk 0:02:32]}  Nxf6 {[%clk 0:02:08]} 17. f4 {[%clk 0:02:26]}  Ke7 {[%clk 0:01:54]} 18. Rxh4 {[%clk 0:02:25]}  Bd7 {[%clk 0:01:54]} 19. Kd2 {[%clk 0:02:23]}  Nd8 {[%clk 0:01:46]} 20. Ne1 {[%clk 0:02:16]}  Nf7 {[%clk 0:01:43]} 21. Nef3 {[%clk 0:02:12]}  Rag8 {[%clk 0:01:25]} 22. Re1 {[%clk 0:02:10]}  Nd6 {[%clk 0:01:24]} 23. Ne5 {[%clk 0:02:07]}  Nfe4+ {[%clk 0:01:22]} 24. Bxe4 {[%clk 0:02:04]}  Nxe4+ {[%clk 0:01:21]} 25. Nxe4 {[%clk 0:02:03]}  dxe4 {[%clk 0:01:19]} 26. g4 {[%clk 0:02:00]} 1-0


[Site "https://www.chess.com"]

[Event "Titled Tuesday Blitz March 28 Late 2023"]
[White "Sarana, Alexey"]
[Black "Ismagilov, Damir"]
[WhiteFideId "24133795"]
[BlackFideId "34199982"]
[WhiteElo "2714"]
[BlackElo "2078"]
[Result "1-0"]
[Round "05"]
[TimeControl "180+2"]
[Date "2023.03.28"]
[WhiteClock "0:00:12"]
[BlackClock "0:00:13"]

1. d4 {[%clk 0:02:04]}  Nf6 {[%clk 0:02:58]} 2. c4 {[%clk 0:02:05]}  e6 {[%clk 0:02:59]} 3. Nf3 {[%clk 0:02:04]}  b6 {[%clk 0:02:59]} 4. g3 {[%clk 0:02:04]}  c6 {[%clk 0:02:59]} 5. Bg2 {[%clk 0:02:04]}  d5 {[%clk 0:03:00]} 6. O-O {[%clk 0:02:05]}  Be7 {[%clk 0:03:00]} 7. Qc2 {[%clk 0:02:05]}  O-O {[%clk 0:03:01]} 8. Nbd2 {[%clk 0:02:02]}  c5 {[%clk 0:03:01]} 9. dxc5 {[%clk 0:02:01]}  bxc5 {[%clk 0:03:02]} 10. e4 {[%clk 0:02:01]}  Nc6 {[%clk 0:02:48]} 11. a3 {[%clk 0:01:53]}  d4 {[%clk 0:02:19]} 12. e5 {[%clk 0:01:48]}  Nd7 {[%clk 0:02:19]} 13. Re1 {[%clk 0:01:47]}  Bb7 {[%clk 0:02:15]} 14. Nb3 {[%clk 0:01:47]}  a5 {[%clk 0:02:12]} 15. Bf4 {[%clk 0:01:46]}  h6 {[%clk 0:02:07]} 16. h4 {[%clk 0:01:45]}  Qb6 {[%clk 0:02:06]} 17. Nc1 {[%clk 0:01:43]}  a4 {[%clk 0:02:04]} 18. Nh2 {[%clk 0:01:41]}  Na5 {[%clk 0:01:43]} 19. Qxa4 {[%clk 0:01:30]}  Bxg2 {[%clk 0:01:31]} 20. Kxg2 {[%clk 0:01:31]}  Qb7+ {[%clk 0:01:29]} 21. Kg1 {[%clk 0:01:25]}  Nb6 {[%clk 0:01:29]} 22. Qb5 {[%clk 0:01:16]}  Nbxc4 {[%clk 0:01:23]} 23. Qxb7 {[%clk 0:01:12]}  Nxb7 {[%clk 0:01:24]} 24. Nd3 {[%clk 0:01:11]}  Nba5 {[%clk 0:01:17]} 25. b4 {[%clk 0:01:03]}  Nb3 {[%clk 0:00:59]} 26. Rab1 {[%clk 0:00:59]}  Rxa3 {[%clk 0:00:57]} 27. bxc5 {[%clk 0:00:59]}  Nbd2 {[%clk 0:00:55]} 28. Bxd2 {[%clk 0:00:59]}  Nxd2 {[%clk 0:00:53]} 29. Rb7 {[%clk 0:00:58]}  Rxd3 {[%clk 0:00:47]} 30. Rxe7 {[%clk 0:00:57]}  Rc3 {[%clk 0:00:42]} 31. Rd7 {[%clk 0:00:42]}  Nb3 {[%clk 0:00:40]} 32. Rb1 {[%clk 0:00:39]}  Rc8 {[%clk 0:00:25]} 33. Kg2 {[%clk 0:00:38]}  R8xc5 {[%clk 0:00:25]} 34. Re1 {[%clk 0:00:17]}  d3 {[%clk 0:00:20]} 35. Nf3 {[%clk 0:00:17]}  Rd5 {[%clk 0:00:19]} 36. Rxd5 {[%clk 0:00:15]}  exd5 {[%clk 0:00:20]} 37. Rd1 {[%clk 0:00:15]}  d2 {[%clk 0:00:20]} 38. Nxd2 {[%clk 0:00:04]}  Rd3 {[%clk 0:00:20]} 39. Rb1 {[%clk 0:00:02]}  Nxd2 {[%clk 0:00:19]} 40. Rb8+ {[%clk 0:00:03]}  Kh7 {[%clk 0:00:20]} 41. Rb7 {[%clk 0:00:04]}  Kg6 {[%clk 0:00:19]} 42. Rb6+ {[%clk 0:00:04]}  Kf5 {[%clk 0:00:19]} 43. Rb7 {[%clk 0:00:04]}  Ke6 {[%clk 0:00:18]} 44. h5 {[%clk 0:00:04]}  Ne4 {[%clk 0:00:18]} 45. f3 {[%clk 0:00:05]}  Rd2+ {[%clk 0:00:18]} 46. Kh3 {[%clk 0:00:05]}  Ng5+ {[%clk 0:00:17]} 47. Kg4 {[%clk 0:00:05]}  Rd3 {[%clk 0:00:13]} 48. Rb6+ {[%clk 0:00:05]}  Ke7 {[%clk 0:00:12]} 49. Rb7+ {[%clk 0:00:06]}  Ke6 {[%clk 0:00:12]} 50. Rb6+ {[%clk 0:00:06]}  Kd7 {[%clk 0:00:10]} 51. f4 {[%clk 0:00:02]}  Ne4 {[%clk 0:00:09]} 52. Rb7+ {[%clk 0:00:01]}  Ke6 {[%clk 0:00:10]} 53. Rb6+ {[%clk 0:00:02]}  Ke7 {[%clk 0:00:10]} 54. Rb7+ {[%clk 0:00:03]}  Ke6 {[%clk 0:00:11]} 55. Rb6+ {[%clk 0:00:03]}  Kd7 {[%clk 0:00:12]} 56. Rb7+ {[%clk 0:00:04]}  Kc6 {[%clk 0:00:12]} 57. Rxf7 {[%clk 0:00:04]}  Rxg3+ {[%clk 0:00:13]} 58. Kf5 {[%clk 0:00:05]}  d4 {[%clk 0:00:11]} 59. Kxe4 {[%clk 0:00:04]}  d3 {[%clk 0:00:12]} 60. Rf8 {[%clk 0:00:04]}  d2 {[%clk 0:00:11]} 61. Rd8 {[%clk 0:00:04]}  Rg2 {[%clk 0:00:12]} 62. Ke3 {[%clk 0:00:04]}  Rh2 {[%clk 0:00:11]} 63. Rxd2 {[%clk 0:00:02]}  Rxh5 {[%clk 0:00:11]} 64. Ke4 {[%clk 0:00:03]}  Rh1 {[%clk 0:00:10]} 65. Kf5 {[%clk 0:00:03]}  h5 {[%clk 0:00:10]} 66. Rg2 {[%clk 0:00:03]}  h4 {[%clk 0:00:10]} 67. Rxg7 {[%clk 0:00:03]}  h3 {[%clk 0:00:11]} 68. Rh7 {[%clk 0:00:04]}  h2 {[%clk 0:00:11]} 69. Ke6 {[%clk 0:00:04]}  Rf1 {[%clk 0:00:09]} 70. Rxh2 {[%clk 0:00:04]}  Rxf4 {[%clk 0:00:09]} 71. Rc2+ {[%clk 0:00:05]}  Kb7 {[%clk 0:00:10]} 72. Kd7 {[%clk 0:00:05]}  Rd4+ {[%clk 0:00:10]} 73. Ke7 {[%clk 0:00:05]}  Kb6 {[%clk 0:00:09]} 74. e6 {[%clk 0:00:06]}  Kb7 {[%clk 0:00:10]} 75. Ke8 {[%clk 0:00:06]}  Kb8 {[%clk 0:00:10]} 76. e7 {[%clk 0:00:07]}  Kb7 {[%clk 0:00:11]} 77. Rf2 {[%clk 0:00:07]}  Kc7 {[%clk 0:00:10]} 78. Kf7 {[%clk 0:00:07]}  Rh4 {[%clk 0:00:10]} 79. e8=Q {[%clk 0:00:07]}  Rh7+ {[%clk 0:00:10]} 80. Kg6 {[%clk 0:00:08]}  Rd7 {[%clk 0:00:10]} 81. Rc2+ {[%clk 0:00:09]}  Kd6 {[%clk 0:00:09]} 82. Rd2+ {[%clk 0:00:08]}  Kc5 {[%clk 0:00:10]} 83. Qxd7 {[%clk 0:00:09]}  Kc4 {[%clk 0:00:11]} 84. Qd3+ {[%clk 0:00:08]}  Kc5 {[%clk 0:00:11]} 85. Rc2+ {[%clk 0:00:09]}  Kb6 {[%clk 0:00:12]} 86. Qd1 {[%clk 0:00:10]}  Ka7 {[%clk 0:00:12]} 87. Qb1 {[%clk 0:00:11]}  Ka6 {[%clk 0:00:13]} 88. Ra2# {[%clk 0:00:12]} 1-0


[Site "https://www.chess.com"]